Workbook

Sheet CLAP
A1: Aerosol sampling efficiency calculator
A2: Global constants | L2: =3*0.0254 -> 0.0762
A3: Temp_air | B3: 293.15 | C3: Kelvin | D3: Air temperature | L3: =4*0.0254 -> 0.1016
A4: Pres_air | B4: 101.3 | C4: kPa | D4: Air pressure
A5: Den_air | B5: =1.293*(273.15/Temp_air)*(Pres_air/101.3) -> 1.204785775 | C5: kg/m^3 | D5: Air density
A6: Vis_air | B6: =0.00001708*((Temp_air/273.15)^1.5)*((393.396)/(Temp_air+120.246)) -> 1.807109947e-05 | C6: Pa*s | D6: Air viscosity
A7: Den_particle | B7: 1000 | C7: kg/m^3 | D7: Particle density
I8: vertical=90
D9: m | E9: lpm | F9: m3/s | G9: m/s | I9: degrees | J9: m | K9: degrees | L9: m | M9: U/U0 | N9: D_um | O9: D_um | P9: D_um | Q9: D_um | R9: D_um | S9: D_um | T9: D_um | U9: D_um | V9: D_um | W9: D_um | X9: D_um | Y9: D_um | Z9: D_um | AA9: D_um | AB9: D_um | AC9: D_um | AD9: D_um | AE9: D_um | AF9: D_um | AG9: D_um | AH9: D_um | AI9: D_um | AJ9: D_um | AK9: D_um | AL9: D_um | AM9: D_um | AN9: D_um | AO9: D_um | AP9: D_um | AQ9: D_um | AR9: D_um | AS9: D_um | AT9: D_um | AU9: D_um | AV9: D_um | AW9: D_um | AX9: D_um | AY9: D_um | AZ9: D_um | BA9: D_um | BB9: D_um | BC9: D_um
A10: Loss | B10: Segment | C10: ID | D10: Diameter | E10: LPM | F10: Flowrate | G10: Velocity | H10: Re_flow | I10: Incline | J10: Length | K10: BendAngle | L10: BendRadius | M10: VelRatio | N10: 10 | O10: 0.001 | P10: =O10*10^0.1 -> 0.001258925412 | Q10: 0.001584893192 | R10: 0.001995262315 | S10: 0.002511886432 | T10: 0.00316227766 | U10: 0.003981071706 | V10: 0.005011872336 | W10: 0.006309573445 | X10: 0.007943282347 | Y10: 0.01 | Z10: 0.01258925412 | AA10: 0.01584893192 | AB10: 0.01995262315 | AC10: 0.02511886432 | AD10: 0.0316227766 | AE10: 0.03981071706 | AF10: 0.05011872336 | AG10: 0.06309573445 | AH10: 0.07943282347 | AI10: 0.1 | AJ10: 0.1258925412 | AK10: 0.1584893192 | AL10: 0.1995262315 | AM10: 0.2511886432 | AN10: 0.316227766 | AO10: 0.3981071706 | AP10: 0.5011872336 | AQ10: 0.6309573445 | AR10: 0.7943282347 | AS10: 1 | AT10: 1.258925412 | AU10: 1.584893192 | AV10: 1.995262315 | AW10: 2.511886432 | AX10: 3.16227766 | AY10: 3.981071706 | AZ10: 5.011872336 | BA10: 6.309573445 | BB10: 7.943282347 | BC10: 10
A13: Total | B13: Inlet | C13: 1 | D13: =12/64*2.54/100 -> 0.0047625 | E13: 1 | F13: =E13/60000 -> 1.666666667e-05 | G13: =flowvelocity($F13,$D13) -> 0.9355971515 | H13: =retube($D13,$G13,Temp_air,Pres_air) -> 297.063391 | I13: 0 | J13: =3*2.54/100 -> 0.0762 | N13: =efficiencysettling(N$10,Temp_air,Pres_air,Den_particle,$D13,$J13,$I13,$G13)*efficiencydiffusion(N$10,Temp_air,Pres_air,$D13,$J13,$G13)*EfficiencyInertiaTurbulent(N$10,Temp_air,Pres_air,Den_particle,$D13,$J13,$G13) -> 0.935476461 | O13: 0.6413220198 | P13: 0.7234651338 | Q13: 0.7869212672 | R13: 0.8359423492 | S13: 0.874024578 | T13: 0.9037212626 | U13: 0.9268565907 | V13: 0.9447827831 | W13: 0.9585599428 | X13: 0.9690529389 | Y13: 0.9769759888 | Z13: 0.9829140222 | AA13: 0.9873376125 | AB13: 0.9906178802 | AC13: 0.9930422341 | AD13: 0.9948299079 | AE13: 0.9961461485 | AF13: 0.9971143844 | AG13: 0.9978261821 | AH13: 0.9983491134 | AI13: 0.9987328048 | AJ13: 0.9990134839 | AK13: 0.9992173105 | AL13: 0.9993627348 | AM13: 0.999462064 | AN13: 0.9995223599 | AO13: 0.9995457212 | AP13: 0.9995289114 | AQ13: 0.9994621597 | AR13: 0.9993267845 | AS13: 0.9990910469 | AT13: 0.9987033116 | AU13: 0.9980810699 | AV13: 0.9970935466 | AW13: 0.9955343162 | AX13: 0.9930784179 | AY13: 0.989215568 | AZ13: 0.9831468969 | BA13: 0.9736269053 | BB13: 0.9587252568 | BC13: 0.935476461
A14: Bend | B14: Bend | C14: 2 | D14: =12/64*2.54/100 -> 0.0047625 | E14: 1 | F14: 1.666666667e-05 | G14: 0.9355971515 | H14: 297.063391 | K14: 90 | L14: =20/64*2.54/100 -> 0.0079375 | N14: =EfficiencyInertiaBend(N$10,Temp_air,Pres_air,Den_particle,$D14,$K14,$L14,$G14) -> 0.9238572482 | O14: 1 | P14: 1 | Q14: 1 | R14: 1 | S14: 1 | T14: 1 | U14: 1 | V14: 1 | W14: 1 | X14: 1 | Y14: 1 | Z14: 1 | AA14: 1 | AB14: 1 | AC14: 1 | AD14: 1 | AE14: 1 | AF14: 1 | AG14: 1 | AH14: 1 | AI14: 1 | AJ14: 1 | AK14: 1 | AL14: 1 | AM14: 1 | AN14: 1 | AO14: 1 | AP14: 1 | AQ14: 1 | AR14: 1 | AS14: 1 | AT14: 1 | AU14: 1 | AV14: 1 | AW14: 1 | AX14: 0.9977077671 | AY14: 0.9935149691 | AZ14: 0.9867029394 | BA14: 0.9754627475 | BB14: 0.9565324614 | BC14: 0.9238572482
A15: Total | B15: Channel | C15: 3 | D15: 0.006205251901 | E15: 1 | F15: 1.666666667e-05 | G15: 0.5511122133 | H15: 227.9946765 | I15: 90 | J15: =24/64*2.54/100 -> 0.009525 | N15: 0.9999913985 | O15: 0.8905532986 | P15: 0.916670247 | Q15: 0.9369668732 | R15: 0.9526275541 | S15: 0.9646037774 | T15: 0.9736796337 | U15: 0.9805013003 | V15: 0.9855935862 | W15: 0.9893744113 | X15: 0.9921701822 | Y15: 0.9942315928 | Z15: 0.9957486036 | AA15: 0.996863668 | AB15: 0.9976827916 | AC15: 0.9982844203 | AD15: 0.9987263816 | AE15: 0.9990511952 | AF15: 0.9992900773 | AG15: 0.9994659283 | AH15: 0.999595547 | AI15: 0.9996912617 | AJ15: 0.9997621275 | AK15: 0.9998148011 | AL15: 0.9998541769 | AM15: 0.9998838489 | AN15: 0.9999064446 | AO15: 0.9999238701 | AP15: 0.9999374944 | AQ15: 0.999948292 | AR15: 0.9999569545 | AS15: 0.9999639773 | AT15: 0.9999697212 | AU15: 0.9999744548 | AV15: 0.9999783808 | AW15: 0.999981654 | AX15: 0.9999843922 | AY15: 0.9999866817 | AZ15: 0.9999885766 | BA15: 0.9999900845 | BB15: 0.999991122 | BC15: 0.9999913985
A16: Bend | B16: Bend | C16: 4 | D16: 0.006205251901 | E16: 1 | F16: 1.666666667e-05 | G16: 0.5511122133 | H16: 227.9946765 | K16: 90 | L16: =8/64*2.54/100 -> 0.003175 | N16: 0.9746254629 | O16: 1 | P16: 1 | Q16: 1 | R16: 1 | S16: 1 | T16: 1 | U16: 1 | V16: 1 | W16: 1 | X16: 1 | Y16: 1 | Z16: 1 | AA16: 1 | AB16: 1 | AC16: 1 | AD16: 1 | AE16: 1 | AF16: 1 | AG16: 1 | AH16: 1 | AI16: 1 | AJ16: 1 | AK16: 1 | AL16: 1 | AM16: 1 | AN16: 1 | AO16: 1 | AP16: 1 | AQ16: 1 | AR16: 1 | AS16: 1 | AT16: 1 | AU16: 1 | AV16: 1 | AW16: 1 | AX16: 1 | AY16: 0.9987485351 | AZ16: 0.9954751542 | BA16: 0.9906151336 | BB16: 0.9836959963 | BC16: 0.9746254629
A17: Total | B17: Tube | C17: 5 | D17: =12/64*2.54/100 -> 0.0047625 | E17: 1 | F17: 1.666666667e-05 | G17: 0.9355971515 | H17: 297.063391 | I17: 0 | J17: =1*2.54/100 -> 0.0254 | N17: 0.9780723029 | O17: 0.807527354 | P17: 0.8519660664 | Q17: 0.8865551947 | R17: 0.913533482 | S17: 0.9345150442 | T17: 0.9507227534 | U17: 0.9631335371 | V17: 0.9725509408 | W17: 0.9796377848 | X17: 0.9849336112 | Y17: 0.9888691834 | Z17: 0.9917817476 | AA17: 0.9939308476 | AB17: 0.9955134688 | AC17: 0.9966775176 | AD17: 0.9975331608 | AE17: 0.9981619794 | AF17: 0.9986241386 | AG17: 0.9989638839 | AH17: 0.9992136856 | AI17: 0.9993973259 | AJ17: 0.9995321702 | AK17: 0.9996308145 | AL17: 0.9997022544 | AM17: 0.99975268 | AN17: 0.9997859712 | AO17: 0.9998039341 | AP17: 0.9998062825 | AQ17: 0.9997903192 | AR17: 0.9997502047 | AS17: 0.9996756162 | AT17: 0.9995494854 | AU17: 0.9993443252 | AV17: 0.9990163631 | AW17: 0.9984962436 | AX17: 0.9976743524 | AY17: 0.9963777204 | AZ17: 0.9943337878 | BA17: 0.9911137588 | BB17: 0.9860444815 | BC17: 0.9780723029
A18: Total to filter | N18: =PRODUCT(N13:N17) -> 0.8238396938 | O18: =PRODUCT(O13:O17) -> 0.4612042607 | P18: =PRODUCT(P13:P17) -> 0.5650059724 | Q18: 0.6536741308 | R18: 0.7274848202 | S18: 0.7878778677 | T18: 0.8365742145 | U18: 0.8752804373 | V18: 0.9056120602 | W18: 0.9290636697 | X18: 0.946979619 | Y18: 0.9605285817 | Z18: 0.9706917716 | AA18: 0.9782674853 | AB18: 0.9838882728 | AC18: 0.988044886 | AD18: 0.9911119143 | AE18: 0.9933718003 | AF18: 0.995035593 | AG18: 0.9962599598 | AH18: 0.9971606293 | AI18: 0.9978227331 | AJ18: 0.9983085889 | AK18: 0.9986634283 | AL18: 0.9989194923 | AM18: 0.9990988172 | AN18: 0.9992149426 | AO18: 0.9992736639 | AP18: 0.9992728211 | AQ18: 0.9992009223 | AR18: 0.9990341517 | AS18: 0.9987309797 | AT18: 0.9982231553 | AU18: 0.9974011738 | AV18: 0.9960912334 | AW18: 0.9940190386 | AX18: 0.9884823662 | AY18: 0.9780019857 | AZ18: 0.960201756 | BA18: 0.9324539919 | BB18: 0.88950304 | BC18: 0.8238396938
A19: ChannelArea | B19: =16/64*0.0254*12/64*0.0254 -> 3.0241875e-05
A20: ChannelDia | B20: =SQRT(4*B19/PI()) -> 0.006205251901
